fUST/lending_fUST_20250809
["ID","MTS","AMOUNT","RATE_DAILY","PERIOD"]
[378109042,1754734246345,-460.0,0.00022464,2]
[378109044,1754734246354,-460.0,0.00022464,2]
[378109046,1754734246364,-151.0,0.00022464,7]
[378109048,1754734246373,-460.0,0.00022464,2]
[378109050,1754734246383,-460.0,0.00022464,2]
[378109052,1754734246392,-504.47,0.00022464,2]
[378109054,1754734246403,-460.0,0.00022464,2]
[378109056,1754734246416,-460.0,0.00022464,2]
[378109058,1754734246425,-460.0,0.00022464,2]
[378109060,1754734246437,-183.09100628,0.00022464,2]
[378109062,1754734246447,-996.57,0.00022464,2]
[378109064,1754734246457,-460.0,0.00022464,2]
[378109066,1754734246466,-460.0,0.00022464,2]
[378109068,1754734246475,-1047.63,0.00022464,2]
[378109070,1754734246486,-460.0,0.00022464,2]
[378109072,1754734246495,-460.0,0.00022464,2]
[378109074,1754734246505,-461.90342057,0.00022464,2]
[378109076,1754734246514,-463.89803972,0.00022464,2]
[378109077,1754734246523,-1066.63,0.00022464,2]
[378109078,1754734246532,-683.38,0.00022464,2]
[378109079,1754734246541,-500.0,0.00022464,2]
[378109080,1754734246550,-151.0,0.00022464,7]
[378109081,1754734246559,-460.0,0.00022464,2]
[378109082,1754734246568,-564.64,0.00022464,2]
[378109083,1754734246577,-460.0,0.00022464,2]
[378109084,1754734246586,-151.0,0.00022464,7]
[378109085,1754734246595,-460.0,0.00022464,2]
[378109086,1754734246604,-1502.3,0.00022464,2]
[378109087,1754734246613,-979.62,0.00022464,2]
[378109088,1754734246623,-744.1,0.00022464,2]
[378109089,1754734246631,-460.0,0.00022464,2]
[378109090,1754734246641,-460.0,0.00022464,2]
[378109091,1754734246651,-460.0,0.00022465,2]
[378109092,1754734246660,-263.23497626,0.00022465,2]
[378109093,1754734246670,-460.0,0.00022465,2]
[378109094,1754734246680,-464.61691886,0.00022465,2]
[378109095,1754734246689,-460.0,0.00022465,2]
[378109096,1754734246698,-380.79507103,0.00022465,2]
[378109097,1754734246708,-460.0,0.00022465,2]
[378109098,1754734246717,-460.0,0.00022465,2]
[378109099,1754734246726,-460.0,0.00022465,2]
[378109100,1754734246736,-460.0,0.00022465,2]
[378109102,1754734246745,-460.0,0.00022465,2]
[378109104,1754734246755,-460.0,0.00022465,2]
[378109105,1754734246764,-460.0,0.00022465,2]
[378109107,1754734246773,-675.96,0.00022465,2]
[378109109,1754734246783,-460.0,0.00022465,2]
[378109112,1754734246793,-460.0,0.00022465,2]
[378109113,1754734246801,-470.23,0.00022465,2]
[378109115,1754734246810,-460.0,0.00022465,2]
[378109117,1754734246820,-460.0,0.00022465,2]
[378109119,1754734246829,-460.0,0.00022465,2]
[378109121,1754734246838,-500.47,0.00022465,2]
[378109123,1754734246853,-460.0,0.00022465,2]
[378109125,1754734246867,-460.0,0.00022465,2]
[378109127,1754734246876,-460.0,0.00022465,2]
[378109129,1754734246886,-927.73,0.00022465,2]
[378109131,1754734246895,-460.0,0.00022465,2]
[378109133,1754734246904,-460.0,0.00022465,2]
[378109135,1754734246914,-460.0,0.00022465,2]
[378109137,1754734246923,-460.0,0.00022465,2]
[378109139,1754734246932,-460.0,0.00022465,2]
[378109141,1754734246941,-878.18,0.00022465,2]
[378109143,1754734246950,-765.1,0.00022465,2]
[378109145,1754734246959,-460.0,0.00022465,2]
[378109147,1754734246968,-460.0,0.00022465,2]
[378109149,1754734246980,-460.0,0.00022465,2]
[378109151,1754734246989,-500.0,0.00022473,2]
[378109153,1754734246998,-500.0,0.00022473,2]
[378109155,1754734247008,-464.19647516,0.00022473,2]
[378109157,1754734247018,-500.0,0.00022473,2]
[378109159,1754734247026,-500.0,0.00022473,2]
[378109160,1754734247036,-150.0,0.00022473,2]
[378109162,1754734247045,-151.0,0.00022473,7]
[378109164,1754734247054,-322.56078917,0.00022484,2]
[378109166,1754734247063,-1000.0,0.00022521,2]
[378109168,1754734247072,-1027.21694621,0.00022521,2]
[378109170,1754734247082,-1000.0,0.00022521,2]
[378109171,1754734247091,-1000.0,0.00022521,2]
[378109173,1754734247100,-1000.0,0.00022521,2]
[378109175,1754734247109,-1000.0,0.00022521,2]
[378109177,1754734247118,-479.79515532,0.00022521,2]
[378109179,1754734247127,-1000.0,0.00022521,2]
[378109181,1754734247136,-1000.0,0.00022521,2]
[378109183,1754734247145,-610.54409596,0.00022521,2]
[378109184,1754734247154,-1000.0,0.00022521,2]
[378109185,1754734247163,-1000.0,0.00022521,2]
[378109186,1754734247172,-1000.0,0.00022521,2]
[378109188,1754734247182,-151.0,0.00022521,7]
[378109190,1754734247191,-151.0,0.00022521,7]
[378109192,1754734247200,-161.678658,0.00022521,7]
[378109193,1754734247209,-161.678658,0.00022521,7]
[378109194,1754734247219,-151.0,0.00022521,7]
[378109195,1754734247228,-151.0,0.000226,6]
[378109196,1754734247237,-151.0,0.00022622,3]
[378109197,1754734247247,-500.0,0.00022622,3]
[378109198,1754734247256,-200.02038073,0.00022622,3]
[378109199,1754734247265,-500.0,0.00022622,3]
[378109200,1754734247275,-151.0,0.00022622,3]
[378109201,1754734247284,-151.0,0.00022622,3]
[378109202,1754734247294,-151.0,0.00022622,3]
[378109203,1754734247303,-151.0,0.00022622,3]
[378109204,1754734247314,-151.0,0.00022622,3]
[378109205,1754734247323,-151.0,0.00022622,3]
[378109206,1754734247332,-500.0,0.00022622,3]
[378109207,1754734247341,-151.0,0.00022622,3]
[378109208,1754734247351,-151.0,0.000227,6]
[378109209,1754734247361,-512.52012634,0.00022721,2]
[378109210,1754734247370,-896.13352281,0.00022721,2]
[378109211,1754734247379,-504.42178589,0.00022721,2]
[378109212,1754734247389,-1000.0,0.00022721,2]
[378109213,1754734247399,-1000.0,0.00022721,2]
[378109214,1754734247413,-1000.0,0.00022721,2]
[378109215,1754734247422,-1000.0,0.00022721,2]
[378109216,1754734247431,-596.48551058,0.00022721,2]
[378109217,1754734247440,-1000.0,0.00022721,2]
[378109218,1754734247449,-1000.0,0.00022721,2]
[378109219,1754734247458,-1000.0,0.00022721,2]
[378109220,1754734247468,-1000.92627552,0.00022721,2]
[378109221,1754734247476,-1000.0,0.00022721,2]
[378109222,1754734247485,-1000.0,0.00022721,2]
[378109223,1754734247495,-501.21025951,0.00022721,2]
[378109224,1754734247504,-1000.0,0.00022721,2]
[378109225,1754734247521,-1000.0,0.00022721,2]
[378109226,1754734247530,-1001.64750758,0.00022721,2]
[378109227,1754734247539,-1000.0,0.00022721,2]
[378109228,1754734247548,-1000.0,0.00022721,2]
[378109229,1754734247557,-314.28283868,0.00022721,2]
[378109230,1754734247565,-1000.0,0.00022721,2]
[378109231,1754734247574,-1000.0,0.00022721,2]
[378109232,1754734247583,-570.00329129,0.00022721,2]
[378109233,1754734247593,-1000.0,0.00022721,2]
[378109234,1754734247602,-1001.64131963,0.00022721,2]
[378109235,1754734247611,-884.37993711,0.00022721,2]
[378109236,1754734247620,-1000.0,0.00022721,2]
[378109237,1754734247629,-1000.0,0.00022721,2]
[378109238,1754734247639,-1001.03349238,0.00022721,2]
[378109239,1754734247648,-1208.63599293,0.00022721,2]
[378109240,1754734247658,-325.0,0.00022721,3]
[378109241,1754734247668,-325.0,0.00022721,3]
[378109242,1754734247677,-325.0,0.00022721,3]
[378109243,1754734247686,-325.0,0.00022721,3]
[378109244,1754734247695,-152.0,0.00022721,3]
[378109245,1754734247705,-1759.0,0.00022721,3]
[378109246,1754734247715,-152.0,0.00022721,3]
[378109247,1754734247724,-325.0,0.00022721,3]
[378109248,1754734247734,-1759.0,0.00022721,3]
[378109249,1754734247743,-325.0,0.00022721,3]
[378109250,1754734247752,-1759.0,0.00022721,3]
[378109251,1754734247761,-325.0,0.00022721,3]
[378109252,1754734247770,-152.0,0.00022721,3]
[378109253,1754734247779,-1022.04202579,0.00022721,3]
[378109254,1754734247789,-152.0,0.00022721,3]
[378109255,1754734247799,-1759.0,0.00022721,3]
[378109256,1754734247807,-325.0,0.00022721,3]
[378109257,1754734247817,-152.0,0.00022721,3]
[378109258,1754734247826,-1759.0,0.00022721,3]
[378109259,1754734247835,-152.0,0.00022721,3]
[378109260,1754734247845,-1759.0,0.00022721,3]
[378109261,1754734247854,-325.0,0.00022721,3]
[378109262,1754734247863,-152.0,0.00022721,3]
[378109263,1754734247872,-325.0,0.00022721,3]
[378109264,1754734247880,-152.0,0.00022721,3]
[378109265,1754734247890,-152.0,0.00022721,3]
[378109266,1754734247898,-325.0,0.00022721,3]
[378109267,1754734247908,-152.0,0.00022721,3]
[378109268,1754734247917,-325.0,0.00022721,3]
[378109269,1754734248037,-152.0,0.00022721,3]
[378109270,1754734248048,-325.0,0.00022721,3]
[378109271,1754734248058,-152.0,0.00022721,3]
[378109272,1754734248067,-325.0,0.00022721,3]
[378109273,1754734248077,-152.0,0.00022721,3]
[378109274,1754734248086,-325.0,0.00022721,3]
[378109275,1754734248095,-325.0,0.00022721,3]
[378109276,1754734248105,-152.0,0.00022721,3]
[378109277,1754734248115,-152.0,0.00022721,3]
[378109278,1754734248124,-371.04001954,0.00022721,3]
[378109279,1754734248134,-152.0,0.00022721,3]
[378109280,1754734248143,-152.0,0.00022721,3]
[378109281,1754734248152,-152.0,0.00022721,3]
[378109282,1754734248162,-152.0,0.00022721,3]
[378109283,1754734248172,-152.0,0.00022721,3]
[378109284,1754734248182,-152.0,0.00022721,3]
[378109285,1754734248191,-152.0,0.00022721,3]
[378109286,1754734248201,-152.0,0.00022721,3]
[378109287,1754734248211,-152.0,0.00022721,3]
[378109288,1754734248220,-152.0,0.00022721,3]
[378109289,1754734248229,-152.0,0.00022721,3]
[378109290,1754734248239,-271.1255198,0.00022721,3]
[378109291,1754734248248,-152.0,0.00022721,3]
[378109292,1754734248258,-152.0,0.00022721,3]
[378109293,1754734248267,-152.0,0.00022721,3]
[378109294,1754734248276,-518.120487,0.00022721,7]
[378109295,1754734248286,-518.120487,0.00022721,7]
[378109296,1754734248295,-151.0,0.00022721,7]
[378109297,1754734248306,-12666.14847857,0.00022721,3]
[378109298,1754734248315,-460.0,0.00022738,2]
[378109299,1754734248324,-460.0,0.00022738,2]
[378109300,1754734248334,-460.0,0.00022738,2]
[378109301,1754734248343,-471.07,0.00022738,2]
[378109302,1754734248353,-460.0,0.00022738,2]
[378109303,1754734248363,-460.0,0.00022738,2]
[378109304,1754734248372,-460.0,0.00022738,2]
[378109305,1754734248381,-460.0,0.00022738,2]
[378109306,1754734248390,-460.0,0.00022738,2]
[378109307,1754734248401,-460.0,0.00022738,2]
[378109308,1754734248413,-460.0,0.00022738,2]
[378109309,1754734248423,-460.0,0.00022738,2]
[378109310,1754734248432,-460.0,0.00022738,2]
[378109311,1754734248443,-460.0,0.00022738,2]
[378109312,1754734248453,-688.56,0.00022738,2]
[378109313,1754734248462,-460.0,0.00022738,2]
[378109314,1754734248471,-460.0,0.00022738,2]
[378109315,1754734248482,-935.34,0.00022738,2]
[378109316,1754734248491,-460.0,0.00022738,2]
[378109317,1754734248501,-2942.37,0.00022738,2]
[378109318,1754734248511,-955.01,0.00022738,2]
[378109319,1754734248520,-460.0,0.00022738,2]
[378109320,1754734248529,-460.0,0.00022738,2]
[378109321,1754734248539,-460.0,0.00022738,2]
[378109322,1754734248547,-513.31244304,0.00022738,2]
[378109323,1754734248557,-657.96,0.00022738,2]
[378109324,1754734248567,-578.59,0.00022738,2]
[378109325,1754734248576,-613.36,0.00022738,2]
[378109326,1754734248586,-5035.55,0.00022738,2]
[378109327,1754734248596,-566.75,0.00022738,2]
[378109328,1754734248606,-460.0,0.00022738,2]
[378109329,1754734248616,-500.96,0.00022738,2]
[378109330,1754734248626,-485.31,0.00022738,2]
[378109331,1754734248636,-460.0,0.00022738,2]
[378109332,1754734248645,-460.0,0.00022738,2]
[378109333,1754734248655,-460.0,0.00022738,2]
[378109334,1754734248666,-460.0,0.00022738,2]
[378109335,1754734248676,-465.48961357,0.00022738,2]
[378109336,1754734248686,-2494.96,0.00022738,2]
[378109337,1754734248696,-460.0,0.00022738,2]
[378109338,1754734248708,-460.0,0.00022738,2]
[378109339,1754734248718,-2268.61,0.00022738,2]
[378109340,1754734248728,-151.602963,0.00022738,7]
[378109341,1754734248737,-1294.56,0.00022738,2]
[378109342,1754734248747,-1443.02,0.00022738,2]
[378109343,1754734248757,-566.23,0.00022738,2]
[378109344,1754734248767,-447.117459,0.00022738,7]
[378109345,1754734248777,-447.117459,0.00022738,7]
[378109346,1754734248787,-460.0,0.00022738,2]
[378109347,1754734248797,-460.0,0.00022738,2]
[378109348,1754734248807,-678.73,0.00022738,2]
[378109349,1754734248816,-460.0,0.00022738,2]
[378109350,1754734248826,-2248.64,0.00022738,2]
[378109351,1754734248837,-151.0,0.00022738,7]
[378109352,1754734248847,-460.0,0.00022738,2]
[378109353,1754734248857,-1417.65,0.00022738,2]
[378109354,1754734248867,-460.0,0.00022738,2]
[378109355,1754734248876,-460.0,0.00022738,2]
[378109356,1754734248886,-781.76,0.00022738,2]
[378109357,1754734248896,-1524.01,0.00022738,2]
[378109358,1754734248905,-460.0,0.00022738,2]
[378109359,1754734248915,-460.0,0.00022738,2]
[378109360,1754734248925,-460.0,0.00022738,2]
[378109361,1754734248934,-460.0,0.00022738,2]
[378109362,1754734248944,-462.75,0.00022738,2]
[378109363,1754734248953,-791.02,0.00022738,2]
[378109364,1754734248963,-460.0,0.00022738,2]
[378109365,1754734248973,-460.0,0.00022738,2]
[378109366,1754734248982,-460.0,0.00022738,2]
[378109367,1754734248992,-1756.2,0.00022738,2]
[378109368,1754734249002,-460.0,0.00022738,2]
[378109369,1754734249012,-460.0,0.00022738,2]
[378109370,1754734249021,-630.12,0.00022738,2]
[378109371,1754734249031,-460.0,0.00022738,2]
[378109372,1754734249040,-460.0,0.00022738,2]
[378109373,1754734249049,-460.0,0.00022738,2]
[378109374,1754734249058,-151.0,0.00022738,7]
[378109375,1754734249067,-477.97,0.00022738,2]
[378109376,1754734249076,-460.0,0.00022738,2]
[378109377,1754734249085,-1403.87,0.00022738,2]
[378109378,1754734249095,-460.0,0.00022738,2]
[378109379,1754734249104,-460.0,0.00022738,2]
[378109380,1754734249113,-460.0,0.00022738,2]
[378109381,1754734249123,-460.0,0.00022738,2]
[378109382,1754734249133,-152.279808,0.00022738,7]
[378109383,1754734249143,-460.0,0.00022738,2]
[378109384,1754734249152,-460.0,0.00022738,2]
[378109385,1754734249162,-504.47,0.00022738,2]
[378109386,1754734249173,-460.0,0.00022738,2]
[378109387,1754734249183,-460.0,0.00022738,2]
[378109388,1754734249194,-460.0,0.00022738,2]
[378109389,1754734249204,-996.57,0.00022738,2]
[378109390,1754734249215,-460.0,0.00022738,2]
[378109391,1754734249225,-1047.63,0.00022738,2]
[378109392,1754734249235,-475.83185336,0.00022738,2]
[378109393,1754734249245,-460.0,0.00022738,2]
[378109394,1754734249255,-1066.63,0.00022738,2]
[378109395,1754734249265,-683.38,0.00022738,2]
[378109396,1754734249275,-151.0,0.00022738,7]
[378109397,1754734249284,-564.64,0.00022738,2]
[378109398,1754734249293,-485.50622539,0.00022738,2]
[378109399,1754734249302,-151.0,0.00022738,7]
[378109400,1754734249311,-460.0,0.00022738,2]
[378109401,1754734249320,-1502.3,0.00022738,2]
[378109402,1754734249329,-979.62,0.00022738,2]
[378109403,1754734249338,-744.1,0.00022738,2]
[378109404,1754734249347,-460.0,0.00022738,2]
[378109405,1754734249357,-156.883488,0.00022739,7]
[378109406,1754734249367,-156.883488,0.00022739,7]
[378109407,1754734249376,-151.0,0.00022739,7]
[378109408,1754734249385,-151.0,0.00022739,7]
[378109409,1754734249395,-170.058747,0.00022739,7]
[378109410,1754734249407,-170.058747,0.00022739,7]
[378109411,1754734249418,-170.058747,0.00022739,7]
[378109412,1754734249427,-170.058756,0.00022739,7]
[378109413,1754734249436,-151.0,0.00022739,7]
[378109414,1754734249445,-202.158489,0.00022739,7]
[378109415,1754734249456,-202.158489,0.00022739,7]
[378109416,1754734249466,-202.158489,0.00022739,7]
[378109417,1754734249477,-202.158488,0.00022739,7]
[378109418,1754734249486,-151.668269,0.00022739,7]
[378109419,1754734249496,-151.0,0.00022739,7]
[378109420,1754734249505,-460.0,0.00022739,2]
[378109421,1754734249514,-460.0,0.00022739,2]
[378109422,1754734249523,-460.0,0.00022739,2]
[378109423,1754734249532,-460.0,0.00022739,2]
[378109424,1754734249542,-460.0,0.00022739,2]
[378109425,1754734249551,-460.0,0.00022739,2]
[378109426,1754734249560,-460.0,0.00022739,2]
[378109427,1754734249569,-532.07921807,0.00022739,2]
[378109428,1754734249578,-675.96,0.00022739,2]
[378109429,1754734249587,-460.0,0.00022739,2]
[378109430,1754734249596,-460.0,0.00022739,2]
[378109431,1754734249605,-470.23,0.00022739,2]
[378109432,1754734249614,-460.0,0.00022739,2]
[378109433,1754734249623,-460.0,0.00022739,2]
[378109434,1754734249632,-460.0,0.00022739,2]
[378109435,1754734249641,-500.47,0.00022739,2]
[378109436,1754734249651,-460.0,0.00022739,2]
[378109437,1754734249660,-151.0,0.00022739,7]
[378109438,1754734249670,-927.73,0.00022739,2]
[378109439,1754734249680,-460.0,0.00022739,2]
[378109440,1754734249689,-460.0,0.00022739,2]
[378109441,1754734249699,-151.0,0.00022739,7]
[378109442,1754734249708,-460.0,0.00022739,2]
[378109443,1754734249717,-151.0,0.00022739,7]
[378109444,1754734249726,-151.0,0.00022739,7]
[378109445,1754734249736,-518.120487,0.00022739,7]
[378109446,1754734249746,-518.120487,0.00022739,7]
[378109447,1754734249755,-151.0,0.00022739,7]
[378109448,1754734249764,-193.021058,0.00022739,7]
[378109449,1754734249774,-151.0,0.00022739,7]
[378109450,1754734249783,-193.021058,0.00022739,7]
[378109451,1754734249792,-151.0,0.00022739,7]
[378109452,1754734249801,-460.0,0.00022739,2]
[378109453,1754734249810,-878.18,0.00022739,2]
[378109454,1754734249819,-765.1,0.00022739,2]
[378109455,1754734249829,-460.0,0.00022739,2]
[378109456,1754734249838,-151.0,0.00022739,7]
[378109457,1754734249848,-151.0,0.00022739,7]
[378109458,1754734249857,-161.678658,0.00022739,7]
[378109459,1754734249866,-151.0,0.00022739,7]
[378109460,1754734249876,-161.678658,0.00022739,7]
[378109461,1754734249885,-151.000001,0.00022739,7]
[378109462,1754734249894,-460.0,0.00022739,2]
[378109463,1754734249903,-500.0,0.00022773,2]
[378109464,1754734249913,-628.10731936,0.00022773,2]
[378109465,1754734249923,-500.0,0.00022773,2]
[378109466,1754734249932,-537.2291448,0.00022773,2]
[378109467,1754734249942,-500.0,0.00022773,2]
[378109468,1754734249951,-500.0,0.00022773,2]
[378109469,1754734249961,-500.0,0.00022773,2]
[378109470,1754734249970,-500.0,0.00022773,2]
[378109471,1754734249979,-500.0,0.00022773,2]
[378109472,1754734249989,-500.0,0.00022773,2]
[378109473,1754734249997,-500.0,0.00022773,2]
[378109474,1754734250007,-500.0,0.00022773,2]
[378109475,1754734250017,-504.7247005,0.00022773,2]
[378109476,1754734250026,-500.0,0.00022773,2]
[378109477,1754734250036,-158.41677855,0.00022773,2]
[378109478,1754734250045,-500.0,0.00022773,2]
[378109479,1754734250055,-500.0,0.00022773,2]
[378109480,1754734250064,-500.0,0.00022773,2]
[378109481,1754734250073,-500.0,0.00022773,2]
[378109482,1754734250082,-500.0,0.00022773,2]
[378109483,1754734250091,-500.0,0.00022773,2]
[378109484,1754734250100,-150.0,0.00022773,2]
[378109485,1754734250110,-598.57718967,0.00022773,2]
[378109486,1754734250119,-151.0,0.000228,7]
[378109487,1754734250130,-151.0,0.000228,6]
[378109488,1754734250139,-151.0,0.000228,8]
[378109489,1754734250148,-168.0,0.00022805,2]
[378109490,1754734250158,-151.0,0.00022896,3]
[378109491,1754734250169,-500.0,0.00022896,3]
[378109492,1754734250178,-500.0,0.00022896,3]
[378109493,1754734250188,-151.0,0.00022896,3]
[378109494,1754734250197,-152.19274896,0.00022896,3]
[378109495,1754734250209,-151.0,0.00022896,3]
[378109496,1754734250218,-200.24349931,0.00022896,3]
[378109497,1754734250227,-151.0,0.00022896,3]
[378109498,1754734250237,-151.0,0.00022896,3]
[378109499,1754734250246,-500.0,0.00022896,3]
[378109500,1754734250255,-248.32751794,0.00022896,3]
[378109501,1754734250264,-151.0,0.000229,8]
[378109502,1754734250274,-5000.0,0.00022914,2]
[378109503,1754734250283,-151.0,0.00022914,7]
[378109504,1754734250293,-151.0,0.0002296,7]
[378109505,1754734250302,-151.0,0.0002296,7]
[378109506,1754734250312,-398.428231,0.0002296,7]
[378109507,1754734250321,-398.428231,0.0002296,7]
[378109508,1754734250330,-479.810239,0.0002296,7]
[378109509,1754734250339,-479.810239,0.0002296,7]
[378109510,1754734250351,-12666.14847857,0.0002296,7]
[378109511,1754734250361,-168.0,0.00022972,2]
[378109512,1754734250370,-500.0,0.00022973,2]
[378109513,1754734250380,-151.0,0.0002299,7]
[378109514,1754734250389,-151.0,0.0002299,7]
[378109515,1754734250398,-151.0,0.0002299,7]
[378109516,1754734250412,-447.117459,0.0002299,7]
[378109517,1754734250529,-447.117459,0.0002299,7]
[378109518,1754734250539,-151.0,0.0002299,7]
[378109519,1754734250549,-151.0,0.0002299,7]
[378109520,1754734250558,-200.0,0.00023,2]
[378109521,1754734250567,-151.0,0.00023,8]
[378109522,1754734250577,-160.0,0.00023,2]
[378109523,1754734250586,-842.95011917,0.00023,3]
[378109524,1754734250596,-160.0,0.00023,3]
[378109525,1754734250605,-151.0,0.00023,6]
[378109526,1754734250614,-160.0,0.00023,3]
[378109527,1754734250625,-231.92402426,0.00023,3]
[378109528,1754734250635,-312.16666667,0.00023,3]
[378109529,1754734250644,-216.61183532,0.00023,3]
[378109530,1754734250653,-160.0,0.00023,3]
[378109531,1754734250663,-460.0,0.00023012,2]
[378109532,1754734250673,-460.0,0.00023012,2]
[378109533,1754734250682,-460.0,0.00023012,2]
[378109534,1754734250692,-471.07,0.00023012,2]
[378109535,1754734250702,-460.0,0.00023012,2]
[378109536,1754734250711,-460.0,0.00023012,2]
[378109537,1754734250720,-460.0,0.00023012,2]
[378109538,1754734250730,-460.0,0.00023012,2]
[378109539,1754734250740,-536.44536672,0.00023012,2]
[378109540,1754734250749,-460.0,0.00023012,2]
[378109541,1754734250758,-460.0,0.00023012,2]
[378109542,1754734250767,-460.0,0.00023012,2]
[378109543,1754734250777,-688.56,0.00023012,2]
[378109544,1754734250787,-460.0,0.00023012,2]
[378109545,1754734250797,-460.0,0.00023012,2]
[378109546,1754734250806,-935.34,0.00023012,2]
[378109547,1754734250815,-460.0,0.00023012,2]
[378109548,1754734250825,-2942.37,0.00023012,2]
[378109549,1754734250834,-955.01,0.00023012,2]
[378109550,1754734250843,-460.0,0.00023012,2]
[378109551,1754734250852,-460.0,0.00023012,2]
[378109552,1754734250861,-460.0,0.00023012,2]
[378109553,1754734250870,-657.96,0.00023012,2]
[378109554,1754734250879,-578.59,0.00023012,2]
[378109555,1754734250888,-613.36,0.00023012,2]
[378109556,1754734250897,-5035.55,0.00023012,2]
[378109557,1754734250906,-566.75,0.00023012,2]
[378109558,1754734250915,-460.0,0.00023012,2]
[378109559,1754734250925,-500.96,0.00023012,2]
[378109560,1754734250935,-460.0,0.00023012,2]
[378109561,1754734250944,-460.0,0.00023012,2]
[378109562,1754734250954,-460.0,0.00023012,2]
[378109563,1754734250963,-460.0,0.00023012,2]
[378109564,1754734250972,-2494.96,0.00023012,2]
[378109565,1754734250981,-460.0,0.00023012,2]
[378109566,1754734250990,-460.0,0.00023012,2]
[378109567,1754734250998,-2268.61,0.00023012,2]
[378109568,1754734251007,-1294.56,0.00023012,2]
[378109569,1754734251016,-1443.02,0.00023012,2]
[378109570,1754734251026,-566.23,0.00023012,2]
[378109571,1754734251035,-460.0,0.00023012,2]
[378109572,1754734251044,-460.0,0.00023012,2]
[378109573,1754734251053,-678.73,0.00023012,2]
[378109574,1754734251062,-460.0,0.00023012,2]
[378109575,1754734251071,-2248.64,0.00023012,2]
[378109576,1754734251080,-460.0,0.00023012,2]
[378109577,1754734251090,-1417.65,0.00023012,2]
[378109578,1754734251100,-460.0,0.00023012,2]
[378109579,1754734251109,-781.76,0.00023012,2]
[378109580,1754734251119,-1524.01,0.00023012,2]
[378109581,1754734251128,-460.0,0.00023012,2]
[378109582,1754734251137,-460.0,0.00023012,2]
[378109583,1754734251146,-460.0,0.00023012,2]
[378109584,1754734251155,-460.0,0.00023012,2]
[378109585,1754734251165,-462.75,0.00023012,2]
[378109586,1754734251174,-791.02,0.00023012,2]
[378109587,1754734251184,-592.07444814,0.00023012,2]
[378109588,1754734251193,-460.0,0.00023012,2]
[378109589,1754734251202,-460.0,0.00023012,2]
[378109590,1754734251211,-1756.2,0.00023012,2]
[378109591,1754734251220,-460.0,0.00023012,2]
[378109592,1754734251230,-630.12,0.00023012,2]
[378109593,1754734251239,-460.0,0.00023012,2]
[378109594,1754734251248,-460.0,0.00023012,2]
[378109595,1754734251258,-151.0,0.00023012,7]
[378109596,1754734251267,-460.0,0.00023012,2]
[378109597,1754734251277,-477.97,0.00023012,2]
[378109598,1754734251286,-460.0,0.00023012,2]
[378109599,1754734251296,-1403.87,0.00023012,2]
[378109600,1754734251306,-460.0,0.00023012,2]
[378109601,1754734251315,-460.0,0.00023012,2]